fUST/lending_fUST_20250727
["ID","MTS","AMOUNT","RATE_DAILY","PERIOD"]
[375235200,1753593070808,-1976.1661497,0.00023092,2]
[375235201,1753593070817,-556.37,0.00023148,3]
[375235202,1753593070827,-4052.07933436,0.00023245,8]
[375235203,1753593070837,-556.37,0.00023248,7]
[375235204,1753593070848,-3737.44,0.00023286,2]
[375235205,1753593070858,-1022.23,0.00023286,2]
[375235206,1753593070867,-1133.15,0.00023286,2]
[375235207,1753593070877,-1780.8,0.00023286,2]
[375235208,1753593070887,-528.49,0.00023286,2]
[375235209,1753593070898,-2979.79,0.00023287,2]
[375235210,1753593070910,-460.0,0.00023287,2]
[375235211,1753593070920,-460.0,0.00023287,2]
[375235212,1753593070930,-1563.98,0.00023287,2]
[375235213,1753593070939,-460.0,0.00023287,2]
[375235214,1753593070949,-154.021161,0.00023287,7]
[375235215,1753593070958,-460.0,0.00023287,2]
[375235216,1753593070968,-151.0,0.00023287,7]
[375235217,1753593070978,-644.44,0.00023287,2]
[375235218,1753593070988,-387.39,0.00023287,2]
[375235219,1753593070997,-541.95,0.00023287,2]
[375235220,1753593071007,-568.64,0.00023287,2]
[375235221,1753593071017,-492.49,0.00023287,2]
[375235222,1753593071027,-1452.54,0.00023287,2]
[375235223,1753593071036,-460.0,0.00023287,2]
[375235224,1753593071045,-151.0,0.00023287,7]
[375235225,1753593071056,-151.0,0.00023287,7]
[375235226,1753593071066,-543.35,0.00023287,2]
[375235227,1753593071075,-960.07,0.00023287,2]
[375235228,1753593071085,-596.69,0.00023287,2]
[375235229,1753593071094,-151.0,0.00023287,7]
[375235230,1753593071103,-151.0,0.00023287,7]
[375235231,1753593071113,-460.0,0.00023287,2]
[375235232,1753593071122,-520.04,0.00023287,2]
[375235233,1753593071132,-460.0,0.00023287,2]
[375235234,1753593071141,-1711.83,0.00023287,2]
[375235235,1753593071151,-460.0,0.00023287,2]
[375235236,1753593071160,-151.0,0.00023287,7]
[375235237,1753593071169,-151.0,0.00023287,7]
[375235238,1753593071178,-1410.74,0.00023287,2]
[375235239,1753593071188,-492.9,0.00023287,2]
[375235240,1753593071197,-478.9,0.00023287,2]
[375235241,1753593071206,-460.0,0.00023287,2]
[375235242,1753593071216,-1486.35,0.00023287,2]
[375235243,1753593071225,-727.55,0.00023287,2]
[375235244,1753593071234,-479.82,0.00023287,2]
[375235245,1753593071243,-1353.54,0.00023287,2]
[375235246,1753593071252,-1774.4,0.00023287,2]
[375235247,1753593071261,-488.35,0.00023287,2]
[375235248,1753593071271,-642.71,0.00023287,2]
[375235249,1753593071280,-471.76,0.00023287,2]
[375235250,1753593071289,-460.0,0.00023287,2]
[375235251,1753593071299,-1006.7,0.00023287,2]
[375235252,1753593071308,-595.02,0.00023287,2]
[375235253,1753593071317,-486.48,0.00023287,2]
[375235254,1753593071327,-494.61,0.00023287,2]
[375235255,1753593071336,-460.0,0.00023287,2]
[375235256,1753593071346,-514.97,0.00023287,2]
[375235257,1753593071355,-460.0,0.00023287,2]
[375235258,1753593071364,-460.0,0.00023287,2]
[375235259,1753593071373,-1152.42,0.00023287,2]
[375235260,1753593071383,-530.21,0.00023287,2]
[375235261,1753593071392,-460.0,0.00023287,2]
[375235262,1753593071402,-592.64,0.00023287,2]
[375235263,1753593071411,-542.88,0.00023287,2]
[375235264,1753593071421,-525.34,0.00023287,2]
[375235265,1753593071435,-460.0,0.00023287,2]
[375235266,1753593071445,-460.0,0.00023287,2]
[375235267,1753593071454,-224.048,0.00023291,2]
[375235268,1753593071463,-150.0,0.00023291,2]
[375235269,1753593071473,-556.37,0.00023348,3]
[375235270,1753593071483,-150.0,0.00023351,2]
[375235271,1753593071493,-556.37,0.00023448,6]
[375235272,1753593071505,-266.1,0.0002347,2]
[375235273,1753593071520,-4052.07933436,0.00023486,9]
[375235274,1753593071531,-168.0,0.00023548,2]
[375235275,1753593071542,-556.37,0.00023548,6]
[375235276,1753593071551,-3737.44,0.0002356,2]
[375235277,1753593071561,-1022.23,0.0002356,2]
[375235278,1753593071570,-1133.15,0.0002356,2]
[375235279,1753593071580,-1780.8,0.0002356,2]
[375235280,1753593071589,-528.49,0.0002356,2]
[375235281,1753593071598,-2979.79,0.00023561,2]
[375235282,1753593071607,-460.0,0.00023561,2]
[375235283,1753593071617,-460.0,0.00023561,2]
[375235284,1753593071627,-1563.98,0.00023561,2]
[375235285,1753593071637,-460.0,0.00023561,2]
[375235286,1753593071647,-460.0,0.00023561,2]
[375235287,1753593071656,-644.44,0.00023561,2]
[375235288,1753593071667,-541.95,0.00023561,2]
[375235289,1753593071676,-568.64,0.00023561,2]
[375235290,1753593071686,-492.49,0.00023561,2]
[375235291,1753593071697,-1452.54,0.00023561,2]
[375235292,1753593071707,-460.0,0.00023561,2]
[375235293,1753593071716,-543.35,0.00023561,2]
[375235294,1753593071726,-960.07,0.00023561,2]
[375235295,1753593071736,-596.69,0.00023561,2]
[375235296,1753593071746,-599.64178083,0.00023561,2]
[375235297,1753593071756,-520.04,0.00023561,2]
[375235298,1753593071767,-439.65631574,0.00023561,2]
[375235299,1753593071777,-1711.83,0.00023561,2]
[375235300,1753593071787,-539.27697015,0.00023561,2]
[375235301,1753593071797,-1410.74,0.00023561,2]
[375235302,1753593071807,-492.9,0.00023561,2]
[375235303,1753593071818,-478.9,0.00023561,2]
[375235304,1753593071827,-460.0,0.00023561,2]
[375235305,1753593071837,-1486.35,0.00023561,2]
[375235306,1753593071846,-727.55,0.00023561,2]
[375235307,1753593071855,-479.82,0.00023561,2]
[375235308,1753593071865,-1353.54,0.00023561,2]
[375235309,1753593071874,-1774.4,0.00023561,2]
[375235310,1753593071884,-488.35,0.00023561,2]
[375235311,1753593071893,-642.71,0.00023561,2]
[375235312,1753593071903,-471.76,0.00023561,2]
[375235313,1753593071912,-460.0,0.00023561,2]
[375235314,1753593071922,-1006.7,0.00023561,2]
[375235315,1753593071931,-595.02,0.00023561,2]
[375235316,1753593071940,-486.48,0.00023561,2]
[375235317,1753593071949,-494.61,0.00023561,2]
[375235318,1753593071958,-281.96961088,0.00023561,2]
[375235319,1753593071967,-514.97,0.00023561,2]
[375235320,1753593071976,-460.0,0.00023561,2]
[375235321,1753593072109,-460.0,0.00023561,2]
[375235322,1753593072122,-1152.42,0.00023561,2]
[375235323,1753593072139,-530.21,0.00023561,2]
[375235324,1753593072158,-460.0,0.00023561,2]
[375235325,1753593072168,-592.64,0.00023561,2]
[375235326,1753593072178,-542.88,0.00023561,2]
[375235327,1753593072187,-525.34,0.00023561,2]
[375235328,1753593072198,-460.0,0.00023561,2]
[375235329,1753593072207,-460.0,0.00023561,2]
[375235330,1753593072216,-168.0,0.00023575,2]
[375235331,1753593072226,-151.0,0.00023575,7]
[375235332,1753593072235,-151.0,0.00023575,7]
[375235333,1753593072244,-678.73,0.000236,7]
[375235334,1753593072254,-2028.04,0.000236,7]
[375235335,1753593072263,-1976.1661497,0.00023616,2]
[375235336,1753593072273,-556.37,0.00023648,5]
[375235337,1753593072283,-150.57,0.00023674,2]
[375235338,1753593072292,-220.021,0.00023674,2]
[375235339,1753593072302,-150.0,0.00023674,2]
[375235340,1753593072311,-246.136,0.00023674,2]
[375235341,1753593072320,-244.179,0.00023674,2]
[375235342,1753593072330,-4052.07933436,0.00023728,9]
[375235343,1753593072339,-190.142514,0.00023744,2]
[375235344,1753593072350,-556.44,0.00023748,6]
[375235345,1753593072359,-3737.44,0.00023834,2]
[375235346,1753593072368,-1022.23,0.00023834,2]
[375235347,1753593072378,-1133.15,0.00023834,2]
[375235348,1753593072388,-1780.8,0.00023834,2]
[375235349,1753593072397,-528.49,0.00023834,2]
[375235350,1753593072407,-2979.79,0.00023835,2]
[375235351,1753593072416,-460.0,0.00023835,2]
[375235352,1753593072426,-460.0,0.00023835,2]
[375235353,1753593072436,-1563.98,0.00023835,2]
[375235354,1753593072446,-460.0,0.00023835,2]
[375235355,1753593072456,-644.44,0.00023835,2]
[375235356,1753593072465,-541.95,0.00023835,2]
[375235357,1753593072477,-568.64,0.00023835,2]
[375235358,1753593072487,-492.49,0.00023835,2]
[375235359,1753593072496,-1452.54,0.00023835,2]
[375235360,1753593072509,-460.0,0.00023835,2]
[375235361,1753593072520,-543.35,0.00023835,2]
[375235362,1753593072529,-960.07,0.00023835,2]
[375235363,1753593072539,-596.69,0.00023835,2]
[375235364,1753593072548,-520.04,0.00023835,2]
[375235365,1753593072559,-1711.83,0.00023835,2]
[375235366,1753593072569,-1410.74,0.00023835,2]
[375235367,1753593072580,-492.9,0.00023835,2]
[375235368,1753593072589,-478.9,0.00023835,2]
[375235369,1753593072598,-460.0,0.00023835,2]
[375235370,1753593072608,-1486.35,0.00023835,2]
[375235371,1753593072618,-727.55,0.00023835,2]
[375235372,1753593072629,-479.82,0.00023835,2]
[375235373,1753593072638,-1353.54,0.00023835,2]
[375235374,1753593072648,-1774.4,0.00023835,2]
[375235375,1753593072657,-488.35,0.00023835,2]
[375235376,1753593072666,-642.71,0.00023835,2]
[375235377,1753593072677,-471.76,0.00023835,2]
[375235378,1753593072687,-460.0,0.00023835,2]
[375235379,1753593072697,-1006.7,0.00023835,2]
[375235380,1753593072707,-595.02,0.00023835,2]
[375235381,1753593072717,-486.48,0.00023835,2]
[375235382,1753593072726,-494.61,0.00023835,2]
[375235383,1753593072735,-514.97,0.00023835,2]
[375235384,1753593072744,-523.76857244,0.00023835,2]
[375235385,1753593072754,-460.0,0.00023835,2]
[375235386,1753593072763,-1152.42,0.00023835,2]
[375235387,1753593072772,-530.21,0.00023835,2]
[375235388,1753593072781,-460.0,0.00023835,2]
[375235389,1753593072791,-151.0,0.00023835,7]
[375235390,1753593072800,-592.64,0.00023835,2]
[375235391,1753593072810,-542.88,0.00023835,2]
[375235392,1753593072819,-525.34,0.00023835,2]
[375235393,1753593072829,-460.0,0.00023835,2]
[375235394,1753593072838,-460.0,0.00023835,2]
[375235395,1753593072848,-190.37625805,0.000239,2]
[375235396,1753593072857,-4052.07933436,0.00023969,10]
[375235397,1753593072866,-151.0,0.00023969,7]
[375235398,1753593072876,-151.0,0.00023969,7]
[375235399,1753593072887,-265.62074,0.00023969,7]
[375235400,1753593072896,-168.0,0.00023993,2]
[375235401,1753593072906,-18870.79,0.00024,2]
[375235402,1753593072915,-151.0,0.00024,7]
[375235403,1753593072925,-160.0,0.00024,7]
[375235404,1753593072934,-603.48989277,0.00024,2]
[375235405,1753593072943,-500.0,0.00024029,2]
[375235406,1753593072954,-151.462899,0.00024038,7]
[375235407,1753593072966,-500.0,0.00024102,2]
[375235408,1753593072975,-3737.44,0.00024108,2]
[375235409,1753593072986,-1022.23,0.00024108,2]
[375235410,1753593072995,-1133.15,0.00024108,2]
[375235411,1753593073007,-1780.8,0.00024108,2]
[375235412,1753593073019,-528.49,0.00024108,2]
[375235413,1753593073030,-2979.79,0.00024109,2]
[375235414,1753593073039,-460.0,0.00024109,2]
[375235415,1753593073049,-460.0,0.00024109,2]
[375235416,1753593073058,-1563.98,0.00024109,2]
[375235417,1753593073068,-460.0,0.00024109,2]
[375235418,1753593073078,-644.44,0.00024109,2]
[375235419,1753593073088,-541.95,0.00024109,2]
[375235420,1753593073099,-568.64,0.00024109,2]
[375235421,1753593073109,-492.49,0.00024109,2]
[375235422,1753593073119,-1452.54,0.00024109,2]
[375235423,1753593073131,-460.0,0.00024109,2]
[375235424,1753593073141,-543.35,0.00024109,2]
[375235425,1753593073151,-960.07,0.00024109,2]
[375235426,1753593073162,-596.69,0.00024109,2]
[375235427,1753593073171,-520.04,0.00024109,2]
[375235428,1753593073183,-1711.83,0.00024109,2]
[375235429,1753593073192,-1410.74,0.00024109,2]
[375235430,1753593073203,-492.9,0.00024109,2]
[375235431,1753593073216,-478.9,0.00024109,2]
[375235432,1753593073227,-460.0,0.00024109,2]
[375235433,1753593073238,-1486.35,0.00024109,2]
[375235434,1753593073247,-727.55,0.00024109,2]
[375235435,1753593073257,-479.82,0.00024109,2]
[375235436,1753593073266,-1353.54,0.00024109,2]
[375235437,1753593073276,-1774.4,0.00024109,2]
[375235438,1753593073286,-488.35,0.00024109,2]
[375235439,1753593073295,-642.71,0.00024109,2]
[375235440,1753593073306,-471.76,0.00024109,2]
[375235441,1753593073315,-460.0,0.00024109,2]
[375235442,1753593073324,-1006.7,0.00024109,2]
[375235443,1753593073334,-595.02,0.00024109,2]
[375235444,1753593073345,-486.48,0.00024109,2]
[375235445,1753593073355,-494.61,0.00024109,2]
[375235446,1753593073366,-514.97,0.00024109,2]
[375235447,1753593073376,-460.0,0.00024109,2]
[375235448,1753593073386,-1152.42,0.00024109,2]
[375235449,1753593073396,-530.21,0.00024109,2]
[375235450,1753593073406,-460.0,0.00024109,2]
[375235451,1753593073417,-592.64,0.00024109,2]
[375235452,1753593073427,-542.88,0.00024109,2]
[375235453,1753593073437,-525.34,0.00024109,2]
[375235454,1753593073447,-460.0,0.00024109,2]
[375235455,1753593073457,-460.0,0.00024109,2]
[375235456,1753593073467,-1976.1661497,0.0002414,2]
[375235457,1753593073476,-1100.0,0.00024149,2]
[375235458,1753593073486,-168.0,0.00024168,2]
[375235459,1753593073495,-1100.0,0.00024173,2]
[375235460,1753593073508,-1100.0,0.00024175,2]
[375235461,1753593073517,-500.0,0.00024199,2]
[375235462,1753593073527,-153.915522,0.00024202,7]
[375235463,1753593073536,-4052.07933436,0.0002421,10]
[375235464,1753593073546,-1100.0,0.00024225,2]
[375235465,1753593073556,-150.0,0.00024249,2]
[375235466,1753593073566,-2938.87,0.000243,7]
[375235467,1753593073575,-151.0,0.000243,7]
[375235468,1753593073585,-289.605948,0.000243,7]
[375235469,1753593073595,-151.0,0.000243,7]
[375235470,1753593073604,-151.0,0.000243,7]
[375235471,1753593073614,-500.0,0.00024303,2]
[375235472,1753593073624,-500.0,0.00024309,2]
[375235473,1753593073634,-500.0,0.00024311,2]
[375235474,1753593073644,-500.0,0.0002434,2]
[375235475,1753593073653,-500.0,0.00024345,2]
[375235476,1753593073662,-500.0,0.00024351,2]
[375235477,1753593073672,-500.0,0.00024353,2]
[375235478,1753593073681,-151.0,0.00024366,6]
[375235479,1753593073691,-151.0,0.00024374,7]
[375235480,1753593073700,-151.892603,0.00024374,7]
[375235481,1753593073709,-3737.44,0.00024382,2]
[375235482,1753593073719,-1022.23,0.00024382,2]
[375235483,1753593073728,-1133.15,0.00024382,2]
[375235484,1753593073737,-1780.8,0.00024382,2]
[375235485,1753593073747,-528.49,0.00024382,2]
[375235486,1753593073756,-2979.79,0.00024383,2]
[375235487,1753593073766,-460.0,0.00024383,2]
[375235488,1753593073775,-460.0,0.00024383,2]
[375235489,1753593073784,-1563.98,0.00024383,2]
[375235490,1753593073794,-460.0,0.00024383,2]
[375235491,1753593073803,-644.44,0.00024383,2]
[375235492,1753593073813,-541.95,0.00024383,2]
[375235493,1753593073823,-568.64,0.00024383,2]
[375235494,1753593073832,-492.49,0.00024383,2]
[375235495,1753593073842,-1452.54,0.00024383,2]
[375235496,1753593073852,-156.89402251,0.00024383,2]
[375235497,1753593073862,-543.35,0.00024383,2]
[375235498,1753593073871,-151.0,0.00024383,7]
[375235499,1753593073881,-960.07,0.00024383,2]
[375235500,1753593073891,-596.69,0.00024383,2]
[375235501,1753593073901,-151.0,0.00024383,7]
[375235502,1753593073912,-520.04,0.00024383,2]
[375235503,1753593073926,-1711.83,0.00024383,2]
[375235504,1753593073938,-1410.74,0.00024383,2]
[375235505,1753593073948,-492.9,0.00024383,2]
[375235506,1753593073958,-478.9,0.00024383,2]
[375235507,1753593073968,-460.0,0.00024383,2]
[375235508,1753593073978,-1486.35,0.00024383,2]
[375235509,1753593073987,-727.55,0.00024383,2]
[375235510,1753593073997,-479.82,0.00024383,2]
[375235511,1753593074007,-1353.54,0.00024383,2]
[375235512,1753593074017,-1774.4,0.00024383,2]
[375235513,1753593074027,-488.35,0.00024383,2]
[375235514,1753593074036,-642.71,0.00024383,2]
[375235515,1753593074047,-471.76,0.00024383,2]
[375235516,1753593074056,-446.91567001,0.00024383,2]
[375235517,1753593074067,-1006.7,0.00024383,2]
[375235518,1753593074076,-595.02,0.00024383,2]
[375235519,1753593074086,-486.48,0.00024383,2]
[375235520,1753593074096,-494.61,0.00024383,2]
[375235521,1753593074106,-369.24657332,0.00024383,2]
[375235522,1753593074184,-145.72342668,0.00024383,2]
[375235523,1753593074194,-278.14100709,0.00024383,2]
[375235524,1753593074225,-254.8702905,0.00019178,2]
[375235525,1753593074235,-460.0,0.00020547,2]
[375235526,1753593074246,-181.85899291,0.00024383,2]
[375235527,1753593074257,-1152.42,0.00024383,2]
[375235528,1753593074268,-530.21,0.00024383,2]
[375235529,1753593074279,-460.0,0.00024383,2]
[375235530,1753593074290,-168.94069995,0.00024383,2]
[375235531,1753593074302,-423.69930005,0.00024383,2]
[375235532,1753593074312,-542.88,0.00024383,2]
[375235533,1753593074322,-525.34,0.00024383,2]
[375235534,1753593074332,-460.0,0.00024383,2]
[375235535,1753593074343,-460.0,0.00024383,2]
[375235536,1753593074354,-151.0,0.00024384,2]
[375235537,1753593074365,-151.5165462,0.00024384,2]
[375235538,1753593074374,-152.14404553,0.00024384,2]
[375235539,1753593074383,-151.0,0.00024384,2]
[375235540,1753593074393,-151.0,0.00024384,2]
[375235541,1753593074403,-151.0,0.00024384,2]
[375235542,1753593074413,-151.0,0.00024384,2]
[375235543,1753593074422,-145.93105798,0.00024384,2]
[375235544,1753593074435,-5.06894202,0.00024384,2]
[375235545,1753593074445,-151.0,0.00024384,2]
[375235546,1753593074455,-151.0,0.00024384,7]
[375235547,1753593074466,-151.0,0.00024384,7]
[375235548,1753593074475,-151.0,0.00024384,7]
[375235549,1753593074485,-151.0,0.00024384,7]
[375235550,1753593074495,-151.0,0.00024384,7]
[375235551,1753593074508,-500.0,0.00024384,2]
[375235552,1753593074518,-151.18783443,0.00024384,2]
[375235553,1753593074527,-151.48953185,0.00024384,2]
[375235554,1753593074537,-500.0,0.00024384,2]
[375235555,1753593074547,-151.0,0.00024384,2]
[375235556,1753593074557,-200.91677972,0.00024384,2]
[375235557,1753593074568,-151.0,0.00024384,2]
[375235558,1753593074578,-151.41282193,0.00024384,2]
[375235559,1753593074590,-151.0,0.00024384,2]
[375235560,1753593074600,-151.81329179,0.00024384,2]
[375235561,1753593074610,-155.35843954,0.00024384,2]
[375235562,1753593074620,-151.0,0.00024384,2]
[375235563,1753593074629,-151.0,0.00024384,2]
[375235564,1753593074639,-151.0,0.00024384,2]
[375235565,1753593074648,-154.22183122,0.00024384,2]
[375235566,1753593074658,-151.0,0.00024384,2]
[375235567,1753593074668,-151.0,0.00024384,2]
[375235568,1753593074678,-500.0,0.00024384,2]
[375235569,1753593074688,-151.0,0.00024384,2]
[375235570,1753593074698,-151.0,0.00024384,2]
[375235571,1753593074707,-151.0,0.00024384,2]
[375235572,1753593074717,-500.0,0.00024384,2]
[375235573,1753593074728,-151.0,0.00024384,2]
[375235574,1753593074738,-151.0,0.00024384,2]
[375235575,1753593074748,-151.0,0.00024384,2]
[375235576,1753593074757,-151.0,0.00024384,2]
[375235577,1753593074766,-151.0,0.00024384,2]
[375235578,1753593074775,-151.0,0.00024384,2]
[375235579,1753593074785,-986.7305275,0.00024389,2]
[375235580,1753593074796,-113.2694725,0.00024389,2]
[375235581,1753593074806,-168.0,0.00024408,2]
[375235582,1753593074815,-1100.0,0.00024435,2]
[375235583,1753593074825,-500.0,0.0002445,2]
[375235584,1753593074834,-4052.07933436,0.00024452,11]
[375235585,1753593074845,-500.0,0.00024452,2]
[375235586,1753593074855,-1100.0,0.00024459,2]
[375235587,1753593074864,-500.0,0.0002447,2]
[375235588,1753593074874,-500.0,0.00024471,2]
[375235589,1753593074884,-500.0,0.00024499,2]
[375235590,1753593074893,-500.0,0.00024521,2]
[375235591,1753593074903,-218.3172978,0.00024529,2]
[375235592,1753593074912,-500.0,0.00024558,2]
[375235593,1753593074925,-500.0,0.00024571,2]
[375235594,1753593074934,-168.0,0.00024587,2]
[375235595,1753593074943,-168.0,0.00024618,2]
[375235596,1753593074952,-168.0,0.00024632,2]
[375235597,1753593074962,-1100.0,0.00024641,2]
[375235598,1753593074971,-1100.0,0.00024643,2]
[375235599,1753593074980,-168.0,0.00024644,2]
[375235600,1753593075093,-500.0,0.00024655,2]
[375235601,1753593075103,-868.33209534,0.00024656,2]
[375235602,1753593075114,-1174.5,0.00024656,2]
[375235603,1753593075126,-1694.60790466,0.00024656,2]
[375235604,1753593075135,-1022.23,0.00024656,2]
[375235605,1753593075146,-1133.15,0.00024656,2]
[375235606,1753593075156,-1780.8,0.00024656,2]
[375235607,1753593075165,-528.49,0.00024656,2]
[375235608,1753593075174,-2979.79,0.00024657,2]
[375235609,1753593075183,-253.74880226,0.00024657,2]
[375235610,1753593075192,-151.0,0.00024657,7]
[375235611,1753593075202,-460.0,0.00024657,2]
[375235612,1753593075211,-1563.98,0.00024657,2]
[375235613,1753593075221,-460.0,0.00024657,2]
[375235614,1753593075230,-644.44,0.00024657,2]
[375235615,1753593075240,-541.95,0.00024657,2]
[375235616,1753593075249,-568.64,0.00024657,2]
[375235617,1753593075260,-492.49,0.00024657,2]
[375235618,1753593075271,-1452.54,0.00024657,2]
[375235619,1753593075281,-543.35,0.00024657,2]
[375235620,1753593075291,-960.07,0.00024657,2]
[375235621,1753593075300,-596.69,0.00024657,2]
[375235622,1753593075310,-3678.72710092,0.00024657,2]
[375235623,1753593075320,-520.04,0.00024657,2]
[375235624,1753593075330,-1711.83,0.00024657,2]
[375235625,1753593075339,-1410.74,0.00024657,2]
[375235626,1753593075348,-492.9,0.00024657,2]
[375235627,1753593075357,-478.9,0.00024657,2]
[375235628,1753593075366,-460.0,0.00024657,2]
[375235629,1753593075375,-1486.35,0.00024657,2]
[375235630,1753593075385,-727.55,0.00024657,2]
[375235631,1753593075395,-479.82,0.00024657,2]
[375235632,1753593075405,-1353.54,0.00024657,2]
[375235633,1753593075414,-1774.4,0.00024657,2]
[375235634,1753593075424,-488.35,0.00024657,2]
[375235635,1753593075434,-642.71,0.00024657,2]
[375235636,1753593075444,-471.76,0.00024657,2]
[375235637,1753593075453,-1006.7,0.00024657,2]
[375235638,1753593075462,-595.02,0.00024657,2]
[375235639,1753593075472,-486.48,0.00024657,2]
[375235640,1753593075481,-494.61,0.00024657,2]
[375235641,1753593075491,-514.97,0.00024657,2]
[375235642,1753593075501,-460.0,0.00024657,2]
[375235643,1753593075514,-1152.42,0.00024657,2]
[375235644,1753593075524,-530.21,0.00024657,2]
[375235645,1753593075533,-316.55,0.00024657,2]
[375235646,1753593075542,-592.64,0.00024657,2]
[375235647,1753593075551,-542.88,0.00024657,2]
[375235648,1753593075560,-525.34,0.00024657,2]
[375235649,1753593075570,-577.40509157,0.00024657,2]
[375235650,1753593075579,-363.53427117,0.00024657,2]
[375235651,1753593075589,-151.0,0.00024658,2]
[375235652,1753593075599,-151.0,0.00024658,2]
[375235653,1753593075608,-151.0,0.00024658,2]
[375235654,1753593075618,-151.0,0.00024658,2]
[375235655,1753593075628,-199.04713453,0.00024658,2]
[375235656,1753593075637,-500.0,0.00024658,2]
[375235657,1753593075647,-500.0,0.00024658,2]
[375235658,1753593075656,-151.0,0.00024658,2]
[375235659,1753593075666,-151.0,0.00024658,2]
[375235660,1753593075678,-151.0,0.00024658,2]
[375235661,1753593075687,-151.0,0.00024658,2]
[375235662,1753593075697,-151.0,0.00024658,2]
[375235663,1753593075708,-151.0,0.00024658,2]
[375235664,1753593075718,-151.0,0.00024658,2]
[375235665,1753593075728,-500.0,0.00024658,2]
[375235666,1753593075737,-151.0,0.00024658,2]
[375235667,1753593075748,-151.0,0.00024658,2]
[375235668,1753593075757,-151.0,0.00024658,2]
[375235669,1753593075766,-500.0,0.00024658,2]
[375235670,1753593075776,-151.0,0.00024658,2]
[375235671,1753593075785,-151.0,0.00024658,2]
[375235672,1753593075795,-151.0,0.00024658,2]
[375235673,1753593075804,-151.0,0.00024658,2]
[375235674,1753593075814,-151.0,0.00024658,2]
[375235675,1753593075823,-500.0,0.00024658,2]
[375235676,1753593075832,-1976.1661497,0.00024665,2]
[375235677,1753593075842,-4052.07933436,0.00024693,11]
[375235678,1753593075851,-1100.0,0.00024697,2]
[375235679,1753593075862,-1100.0,0.00024708,2]
[375235680,1753593075871,-177.4,0.00024726,2]
[375235681,1753593075880,-500.0,0.00024758,2]
[375235682,1753593075890,-500.0,0.00024768,2]
[375235683,1753593075899,-151.0,0.00024773,7]
[375235684,1753593075908,-500.0,0.00024776,2]
[375235685,1753593075918,-1100.0,0.0002478,2]
[375235686,1753593075927,-151.0,0.00024781,7]
[375235687,1753593075937,-151.0,0.00024781,7]
[375235688,1753593075946,-151.0,0.00024781,7]
[375235689,1753593075956,-151.0,0.00024781,7]
[375235690,1753593075965,-151.0,0.00024781,7]
[375235691,1753593075974,-151.0,0.00024781,7]
[375235692,1753593075983,-177.4,0.00024794,2]
[375235693,1753593075992,-168.0,0.00024805,2]
[375235694,1753593076001,-500.0,0.00024816,2]
[375235695,1753593076010,-429.9863832,0.00024822,2]
[375235696,1753593076020,-429.9863832,0.00024822,2]
[375235697,1753593076029,-429.9863832,0.00024822,2]
[375235698,1753593076038,-429.9863832,0.00024822,2]
[375235699,1753593076048,-429.9863832,0.00024822,2]